bitfinex-derivatives/quotes_ETHF0:USTF0_20260119
["timestamp","ask_amount","ask_price","bid_price","bid_amount"]
[1768829578606,0.93216646,3217.7,3216.6,0.15809044]
[1768829578807,0.93216646,3217.6,3216.6,0.15809044]
[1768829579007,2.113,3217.8,3216.6,1.44723679]
[1768829579304,0.93216625,3217.7,3216.6,1.44723679]
[1768829579606,0.93216625,3217.6,3216.6,1.44723679]
[1768829579806,2.121,3217.8,3216.6,1.44723679]
[1768829580005,0.93227913,3217.7,3216.6,1.44723679]
[1768829580206,0.93227913,3217.6,3216.6,1.44723679]
[1768829580402,2.121,3217.8,3216.6,1.44723679]
[1768829580603,0.93228163,3217.7,3216.6,1.44723679]
[1768829580802,0.93228163,3217.6,3216.6,1.44723679]
[1768829581000,2.121,3217.8,3216.6,1.44723679]
[1768829581199,0.93228016,3217.7,3216.6,1.44723679]
[1768829581400,0.93228016,3217.6,3216.6,1.44723679]
[1768829581607,2.121,3217.8,3216.6,1.44723679]
[1768829581809,0.9322924,3217.7,3216.6,1.44723679]
[1768829582007,0.9322924,3217.6,3216.6,1.44723679]
[1768829582209,2.131,3217.8,3216.8,1.28914635]
[1768829582410,0.93230301,3217.7,3216.8,1.28914635]
[1768829582606,0.93230301,3217.6,3216.8,1.28914635]
[1768829582801,2.131,3217.8,3216.8,1.28914635]
[1768829583001,0.93229975,3217.7,3216.8,1.28914635]
[1768829583204,0.93229975,3217.6,3216.8,1.28914635]
[1768829583411,2.131,3217.8,3216.8,1.28914635]
[1768829583603,0.93230264,3217.7,3216.8,1.28914635]
[1768829583803,0.93230264,3217.6,3216.8,1.28914635]
[1768829584011,2.131,3217.8,3216.8,1.28914635]
[1768829584212,0.93230387,3217.7,3216.8,1.28914635]
[1768829584403,0.93230387,3217.6,3216.8,1.28914635]
[1768829584603,2.131,3217.8,3216.8,1.28914635]
[1768829584807,0.9323074,3217.7,3216.8,1.28914635]
[1768829585006,0.9323074,3217.6,3216.8,1.28914635]
[1768829585308,0.18224794,3217.9,3216.8,1.28914635]
[1768829585505,0.93231107,3217.8,3216.8,1.28914635]
[1768829585707,0.93231107,3217.7,3216.8,1.28914635]
[1768829585905,0.93231107,3217.6,3217.1,1.28914635]
[1768829586204,203.25581065,3218.0,3217.1,1.28914635]
[1768829586405,0.9323055,3217.9,3217.1,1.28914635]
[1768829586612,0.9323055,3217.8,3217.1,1.28914635]
[1768829586813,0.9323055,3217.7,3217.1,1.28914635]
[1768829587011,0.9323055,3217.6,3217.1,1.28914635]
[1768829587213,203.25881065,3218.0,3217.1,1.28914635]
[1768829587406,0.9323572,3217.9,3217.1,1.28914635]
[1768829587606,0.9323572,3217.8,3217.1,1.28914635]
[1768829587808,0.9323572,3217.7,3217.1,1.28914635]
[1768829588002,0.9323572,3217.6,3217.1,1.28914635]
[1768829588210,203.25881065,3218.0,3216.9,1.28914635]
[1768829588409,0.93239121,3217.9,3216.9,1.28914635]
[1768829588609,0.93239121,3217.8,3216.9,1.28914635]
[1768829588810,0.93239121,3217.7,3216.9,1.28914635]
[1768829589011,0.93239121,3217.6,3216.8,1.28914635]
[1768829589213,203.26781065,3218.0,3216.8,1.28914635]
[1768829589414,0.93261275,3217.9,3216.8,1.28914635]
[1768829589615,0.93261275,3217.8,3216.8,1.28914635]
[1768829589811,0.93261275,3217.7,3216.8,1.28914635]
[1768829590018,0.93261275,3217.6,3216.8,1.28914635]
[1768829590206,203.26781065,3218.0,3216.8,1.44467635]
[1768829590410,0.93262947,3217.9,3216.8,1.44467635]
[1768829590610,0.93262947,3217.8,3216.8,1.44467635]
[1768829590813,0.93262947,3217.7,3216.8,1.44467635]
[1768829591014,0.93262947,3217.6,3216.8,0.15553]
[1768829591221,203.27381065,3218.0,3216.8,0.15553]
[1768829591419,0.93283053,3217.9,3216.8,0.15553]
[1768829591620,0.93283053,3217.8,3216.8,0.15553]
[1768829591819,0.93283053,3217.7,3216.8,0.15553]
[1768829592115,0.93283053,3217.6,3216.8,0.15553]
[1768829592313,203.27381065,3218.0,3216.8,0.15553]
[1768829592513,0.9326887,3217.9,3216.8,0.15553]
[1768829592713,0.9326887,3217.8,3216.8,0.15553]
[1768829592914,0.9326887,3217.7,3216.8,0.15553]
[1768829593115,0.9326887,3217.6,3216.8,0.15553]
[1768829593417,203.27381065,3218.0,3216.8,0.15553]
[1768829593615,0.18224794,3217.8,3216.8,0.15553]
[1768829593921,0.9326822,3217.7,3216.8,0.15553]
[1768829594117,0.9326822,3217.6,3216.8,0.15553]
[1768829594317,0.18224794,3217.8,3216.8,0.15553]
[1768829594517,0.93268164,3217.7,3216.8,0.15553]
[1768829594815,0.93268164,3217.6,3216.8,0.15553]
[1768829595016,0.18224794,3217.8,3216.6,0.00255044]
[1768829595217,0.18224794,3217.6,3216.6,0.00255044]
[1768829595412,0.93266795,3217.5,3216.6,0.00255044]
[1768829598019,0.18224794,3217.6,3216.6,0.00255044]
[1768829598215,2.188,3217.9,3216.7,0.32603951]
[1768829598525,0.93269981,3217.8,3216.7,0.32603951]
[1768829598722,0.93269981,3217.7,3216.7,0.32603951]
[1768829599023,0.93269981,3217.6,3216.7,0.32603951]
[1768829599224,203.30281065,3218.0,3216.7,0.32603951]
[1768829599423,0.93289839,3217.9,3216.7,0.32603951]
[1768829599614,0.93289839,3217.8,3216.7,0.32603951]
[1768829599815,0.93289839,3217.7,3216.7,0.32603951]
[1768829600016,0.93289839,3217.6,3216.7,0.32603951]
[1768829600216,203.30281065,3218.0,3216.7,0.32603951]
[1768829600423,0.93288049,3217.9,3216.7,0.32603951]
[1768829600622,0.93288049,3217.8,3216.7,0.32603951]
[1768829600820,0.93288049,3217.7,3216.7,0.32603951]
[1768829601022,0.93288049,3217.6,3216.7,0.32603951]
[1768829601217,203.30281065,3218.0,3216.7,0.32603951]
[1768829601415,0.93286836,3217.9,3216.7,0.32603951]
[1768829601618,0.93286836,3217.8,3216.7,0.32603951]
[1768829601824,0.93286836,3217.7,3216.7,0.32603951]
[1768829602122,0.93286836,3217.6,3216.7,0.32603951]
[1768829602312,203.31481065,3218.0,3216.7,0.32603951]
[1768829602515,0.93298731,3217.9,3216.7,0.32603951]
[1768829602717,0.93298731,3217.8,3216.7,0.32603951]
[1768829602923,0.93298731,3217.7,3216.7,0.32603951]
[1768829603117,0.93298731,3217.6,3216.7,0.32603951]
[1768829603319,203.31481065,3218.0,3216.7,0.32603951]
[1768829603520,0.93302759,3217.9,3216.7,0.32603951]
[1768829603814,0.93302759,3217.8,3216.7,0.32603951]
[1768829604021,0.93302759,3217.7,3216.7,0.32603951]
[1768829604318,0.93302759,3217.6,3216.7,0.32603951]
[1768829604518,203.31481065,3218.0,3216.7,0.32603951]
[1768829604719,0.93301271,3217.9,3216.7,0.32603951]
[1768829604912,0.93301271,3217.8,3216.7,0.32603951]
[1768829605117,0.93301271,3217.7,3216.7,0.32603951]
[1768829605319,0.93301271,3217.6,3216.7,0.32603951]
[1768829605519,203.31481065,3218.0,3216.7,0.32603951]
[1768829605729,0.93304668,3217.9,3216.7,0.32603951]
[1768829605919,0.93304668,3217.8,3216.7,0.32603951]
[1768829606120,0.93304668,3217.7,3216.7,0.32603951]
[1768829606320,0.93304668,3217.6,3216.7,0.32603951]
[1768829606519,203.32681065,3218.0,3216.7,0.32603951]
[1768829606719,0.93304869,3217.9,3216.7,0.32603951]
[1768829606915,0.93304869,3217.8,3216.7,0.32603951]
[1768829607127,0.93304869,3217.7,3216.8,0.15553]
[1768829607329,200.00394542,3218.0,3216.8,0.15553]
[1768829607530,0.93307111,3217.9,3216.8,0.15553]
[1768829607828,0.93307111,3217.8,3216.8,0.15553]
[1768829608030,0.93307111,3217.7,3216.8,0.15553]
[1768829608230,200.18303637,3218.0,3216.8,0.15553]
[1768829608430,1.11211888,3217.9,3216.8,0.15553]
[1768829608631,0.93302793,3217.8,3216.8,0.15553]
[1768829609024,1.11211888,3217.7,3216.8,0.15553]
[1768829609223,0.17909095,3217.7,3216.8,0.15553]
[1768829609526,0.9329825,3217.6,3216.8,0.15553]
[1768829609721,0.17909095,3217.7,3216.8,0.15553]
[1768829609925,0.93298102,3217.6,3216.8,0.15553]
[1768829610128,0.17909095,3217.7,3216.8,0.15553]
[1768829610321,0.9329827,3217.6,3216.8,0.15553]
[1768829610530,2.232,3217.9,3216.8,0.15553]
[1768829610726,0.93299977,3217.8,3216.8,0.15553]
[1768829610930,0.93299977,3217.7,3216.8,0.15553]
[1768829611135,0.93299977,3217.6,3216.8,0.15553]
[1768829611432,2.232,3217.9,3216.8,0.15553]
[1768829611625,0.93291487,3217.8,3216.8,0.15553]
[1768829611826,0.93291487,3217.7,3216.8,0.15553]
[1768829612129,0.93291487,3217.6,3216.8,0.15553]
[1768829612330,2.232,3217.9,3216.8,0.15553]
[1768829612530,0.93292251,3217.8,3216.8,0.15553]
[1768829612731,0.93292251,3217.7,3216.8,0.15553]
[1768829612932,0.93292251,3217.6,3216.8,0.15553]
[1768829613133,2.24,3217.9,3216.8,0.15553]
[1768829613334,0.93292814,3217.8,3216.8,0.15553]
[1768829613543,0.93292814,3217.7,3216.8,0.15553]
[1768829613743,0.93292814,3217.6,3216.8,0.15553]
[1768829613946,2.24,3217.9,3216.8,0.15553]
[1768829614139,0.93292699,3217.8,3216.9,0.15552]
[1768829614340,0.93292699,3217.7,3216.9,0.15552]
[1768829614540,202.24994542,3218.0,3216.9,0.15552]
[1768829614846,0.93298149,3217.9,3216.9,0.15552]
[1768829615039,0.93298149,3217.8,3216.9,0.15552]
[1768829615238,0.93298149,3217.7,3216.9,0.15552]
[1768829615438,202.24994542,3218.0,3216.9,0.15552]
[1768829615639,0.93295237,3217.9,3216.9,0.15552]
[1768829615840,0.93295237,3217.8,3216.9,0.15552]
[1768829616135,0.93295237,3217.7,3216.9,0.15552]
[1768829616341,202.25694542,3218.0,3216.9,0.15552]
[1768829616543,0.93293176,3217.9,3216.9,0.15552]
[1768829616742,0.93293176,3217.8,3216.9,0.15552]
[1768829616941,202.25694542,3218.0,3216.9,0.15552]
[1768829617147,0.93293408,3217.9,3216.9,0.15552]
[1768829617348,202.25694542,3218.0,3216.9,0.15552]
[1768829617548,0.93350896,3217.9,3216.9,0.15552]
[1768829617743,200.00394542,3218.0,3216.9,0.15552]
[1768829617937,0.93350554,3217.9,3216.9,0.15552]
[1768829618142,200.00394542,3218.0,3216.9,0.15552]
[1768829618343,200.00394542,3218.0,3216.7,1.28910529]
[1768829618344,0.93339229,3217.9,3217.0,0.15552]
[1768829618544,200.00394542,3218.0,3217.0,0.15552]
[1768829618751,0.93339186,3217.9,3217.0,0.15552]
[1768829618941,200.00394542,3218.0,3217.0,0.15552]
[1768829619142,0.93339184,3217.9,3217.0,0.15552]
[1768829619343,200.00394542,3218.0,3217.0,0.15552]
[1768829619543,0.93330502,3217.9,3217.0,0.15552]
[1768829619842,200.00394542,3218.0,3217.0,0.15552]
[1768829620037,0.93330503,3217.9,3217.0,0.15552]
[1768829620237,200.00394542,3218.0,3217.1,0.15551]
[1768829620441,200.00394542,3218.0,3217.2,0.15551]
[1768829624039,200.17084159,3218.0,3217.2,0.15551]
[1768829624850,0.16689617,3217.9,3217.2,0.15551]
[1768829629051,200.00394542,3218.0,3217.2,0.15551]
[1768829629846,202.30394542,3218.0,3217.2,0.15551]
[1768829630652,200.00394542,3218.0,3217.2,0.15551]
[1768829631152,202.30894542,3218.0,3217.2,0.15551]
[1768829632551,202.31394542,3218.0,3217.2,0.15551]
[1768829633449,202.31694542,3218.0,3217.2,0.15551]
[1768829633843,200.00394542,3218.0,3217.2,0.15551]
[1768829634149,202.31894542,3218.0,3217.2,0.15551]
[1768829634356,200.00394542,3218.0,3217.2,0.15551]
[1768829634555,202.31994542,3218.0,3217.2,0.15551]
[1768829637259,200.00394542,3218.0,3217.2,0.15551]
[1768829637953,202.33294542,3218.0,3217.2,0.15551]
[1768829638260,200.00394542,3218.0,3217.2,0.15551]
[1768829646458,200.00394542,3218.0,3216.8,1.46339591]
[1768829646665,200.00394542,3218.0,3216.9,0.17429062]
[1768829646962,200.00394542,3218.0,3217.4,0.1555]
[1768829650865,200.00394542,3218.0,3217.4,1.44410089]
[1768829653861,200.00394542,3218.0,3217.4,0.1555]
[1768829654161,200.00394542,3218.0,3217.4,1.44410089]
[1768829655468,200.00394542,3218.0,3217.4,0.1555]
[1768829655767,200.00394542,3218.0,3217.4,1.44410089]
[1768829661077,200.00394542,3218.0,3217.4,0.1555]
[1768829667566,0.1730059,3217.9,3216.9,2.41452]
[1768829667773,0.1730059,3217.9,3217.0,1.28860089]
[1768829668080,200.00394542,3218.0,3217.0,1.28860089]
[1768829670384,200.00394542,3218.0,3216.9,2.41452]
[1768829670578,200.00394542,3218.0,3217.0,1.28860089]
[1768829673184,200.00394542,3218.0,3216.9,2.41452]
[1768829673385,200.00394542,3218.0,3217.0,1.28860089]
[1768829676988,200.00394542,3218.0,3217.0,1.44412089]
[1768829682283,200.00394542,3218.0,3217.0,0.15552]
[1768829696195,0.93201035,3217.9,3217.0,0.15552]
[1768829696400,200.00394542,3218.0,3217.0,0.15552]
[1768829696595,0.93200965,3217.9,3217.0,0.15552]
[1768829696900,200.00394542,3218.0,3217.0,0.15552]
[1768829697103,0.93200981,3217.9,3217.0,0.15552]
[1768829697401,200.00394542,3218.0,3217.0,0.15552]
[1768829697598,0.9324341,3217.9,3217.0,0.15552]
[1768829697798,200.00394542,3218.0,3217.0,0.15552]
[1768829697993,0.93243221,3217.9,3217.0,0.15552]
[1768829698202,200.00394542,3218.0,3217.0,0.15552]
[1768829698502,0.93243558,3217.9,3217.0,0.15552]
[1768829698703,200.00394542,3218.0,3217.0,0.15552]
[1768829698902,0.93243476,3217.9,3217.0,0.15552]
[1768829699103,200.00394542,3218.0,3217.0,0.15552]
[1768829699304,0.93244269,3217.9,3217.0,0.15552]
[1768829699504,200.00394542,3218.0,3217.0,0.15552]
[1768829699704,0.93244346,3217.9,3217.0,0.15552]
[1768829699903,200.00394542,3218.0,3217.0,0.15552]
[1768829700106,0.93244368,3217.9,3217.0,0.15552]
[1768829700308,200.00394542,3218.0,3217.0,0.15552]
[1768829700498,0.93244888,3217.9,3217.0,0.15552]
[1768829700792,200.00394542,3218.0,3217.0,0.15552]
[1768829700997,0.93245177,3217.9,3217.0,0.15552]
[1768829701196,200.00394542,3218.0,3217.0,0.15552]
[1768829701398,0.93245864,3217.9,3217.0,0.15552]
[1768829701697,200.00394542,3218.0,3217.0,0.15552]
[1768829701898,0.93245805,3217.9,3217.0,0.15552]
[1768829702099,200.00394542,3218.0,3217.0,0.15552]
[1768829702399,0.93246177,3217.9,3217.0,0.15552]
[1768829702595,200.00394542,3218.0,3217.0,1.44412089]
[1768829702794,0.93246682,3217.9,3217.0,1.44412089]
[1768829703008,202.55594542,3218.0,3217.0,1.44412089]
[1768829703199,0.93246668,3217.9,3217.0,1.44412089]
[1768829703400,202.55594542,3218.0,3217.0,1.44412089]
[1768829703601,0.93247587,3217.9,3217.0,1.44412089]
[1768829703801,202.55594542,3218.0,3217.0,1.44412089]
[1768829704110,0.93247589,3217.9,3217.0,1.44412089]
[1768829704409,202.55594542,3218.0,3217.0,1.44412089]
[1768829704609,0.93248829,3217.9,3217.0,0.15552]
[1768829704911,202.55594542,3218.0,3217.0,1.44412089]
[1768829705112,0.93248807,3217.9,3217.0,1.44412089]
[1768829705302,200.00394542,3218.0,3217.0,1.44412089]
[1768829705603,0.93249832,3217.9,3217.0,1.44412089]
[1768829705804,202.56594542,3218.0,3217.1,0.15551]
[1768829706005,0.93250235,3217.9,3217.2,1.28860089]
[1768829706309,202.56694542,3218.0,3217.2,1.28860089]
[1768829706511,0.93261037,3217.9,3217.2,1.28860089]
[1768829706708,202.56694542,3218.0,3217.2,1.28860089]
[1768829706912,0.93272161,3217.9,3217.2,1.28860089]
[1768829707211,202.56694542,3218.0,3217.2,1.28860089]
[1768829707512,0.93173736,3217.9,3217.2,1.28860089]
[1768829707713,202.56694542,3218.0,3217.2,1.28860089]
[1768829707902,0.93173856,3217.9,3217.2,1.28860089]
[1768829708103,202.56694542,3218.0,3217.2,1.28860089]
[1768829708399,0.93174144,3217.9,3217.2,1.28860089]
[1768829708604,202.56694542,3218.0,3217.2,1.28860089]
[1768829708801,0.93174058,3217.9,3217.2,1.28860089]
[1768829709013,202.56694542,3218.0,3217.2,1.28860089]
[1768829709210,187.70782949,3218.0,3217.6,1.28860089]
[1768829710908,187.70782949,3218.0,3217.6,1.4550511]
[1768829711111,170.56229869,3218.0,3217.9,0.15548]
[1768829711311,157.17306191,3218.0,3217.9,0.15548]
[1768829712309,157.17306191,3218.0,3217.6,0.00466092]
[1768829712508,157.17306191,3218.0,3217.9,0.15548]
[1768829712716,157.17306191,3218.0,3217.6,0.00466092]
[1768829712918,157.17306191,3218.0,3217.9,0.15548]
[1768829713118,157.17306191,3218.0,3217.6,0.00466092]
[1768829713721,157.17306191,3218.0,3217.9,0.15548]
[1768829714020,157.17306191,3218.0,3217.6,0.00466092]
[1768829714521,157.17306191,3218.0,3217.9,0.15548]
[1768829714822,157.17306191,3218.0,3217.6,0.00466092]
[1768829715623,157.17306191,3218.0,3217.9,0.15548]
[1768829715812,157.17306191,3218.0,3217.6,0.00466092]
[1768829716324,157.17306191,3218.0,3217.3,0.15551]
[1768829718118,157.17306191,3218.0,3217.6,0.15549]
[1768829720823,146.13614776,3218.0,3217.7,0.15549]
[1768829721017,135.4007011,3218.0,3217.1,1.45513446]
[1768829721225,134.82241685,3218.0,3217.2,0.16645021]
[1768829721423,134.06675685,3218.0,3217.8,0.15548]
[1768829721728,122.9616927,3218.0,3217.8,0.15548]
[1768829722025,122.1733627,3218.0,3217.9,0.15548]
[1768829722417,121.4048327,3218.0,3217.9,0.15548]
[1768829722724,121.0184727,3218.0,3217.9,0.15548]
[1768829722929,120.6664027,3218.0,3217.9,0.15548]
[1768829723820,120.6664027,3218.0,3217.3,40.8]
[1768829724028,120.9118837,3218.0,3217.5,0.1555]
[1768829724227,120.6664027,3218.0,3217.5,0.1555]
[1768829724633,120.31787335,3218.0,3217.7,0.15549]
[1768829724926,120.56335435,3218.0,3217.7,0.15549]
[1768829725326,0.245481,3217.9,3217.3,2.251]
[1768829725631,120.31787335,3218.0,3217.3,2.251]
[1768829726022,120.56335435,3218.0,3217.7,0.15549]
[1768829726622,120.56335435,3218.0,3217.3,2.251]
[1768829727623,120.56335435,3218.0,3217.7,0.15549]
[1768829729529,120.17162937,3218.0,3217.7,0.15549]
[1768829729727,0.245481,3217.9,3217.3,2.251]
[1768829730734,120.17162937,3218.0,3217.7,0.15548]
[1768829733937,120.41711037,3218.0,3217.3,2.251]
[1768829735329,0.245481,3217.9,3217.3,2.251]
[1768829735529,0.245481,3217.9,3217.3,1.99829414]
[1768829735735,120.17162937,3218.0,3217.3,1.55403051]
[1768829740237,120.17162937,3218.0,3217.1,0.15552]
[1768829742545,1.28868425,3217.8,3216.6,2.27655044]
[1768829743341,1.28868425,3217.8,3217.1,0.15551]
[1768829743542,1.28868425,3217.8,3216.6,2.43209044]
[1768829745446,1.28868425,3217.9,3216.6,2.43209044]
[1768829750642,1.28868425,3217.9,3216.6,2.6577779]
[1768829751038,1.28868425,3217.9,3216.6,0.15809044]
[1768829751241,1.28868425,3217.5,3216.2,0.22568746]
[1768829752241,1.28868425,3217.5,3216.2,0.22943507]
[1768829752441,1.28868425,3217.5,3216.2,0.00374761]
[1768829753759,2.722,3217.4,3216.2,0.00374761]
[1768829757463,1.28868425,3217.1,3216.1,1.402]
[1768829758157,1.28868425,3217.1,3216.0,0.15557]
[1768829758365,1.28868425,3217.1,3216.0,0.15881197]
[1768829760269,1.28868425,3217.1,3216.0,0.3871279]
[1768829760957,1.28868425,3217.1,3216.1,0.22831593]
[1768829762070,1.10786523,3217.9,3216.2,0.22831593]
[1768829762263,0.92632247,3217.8,3216.5,0.22831593]
[1768829762562,4.02168425,3217.9,3216.5,0.22831593]
[1768829762864,1.28868425,3217.9,3216.5,0.15554]
[1768829763067,1.28868425,3217.9,3216.6,0.22831593]
[1768829767073,120.17162937,3218.0,3216.6,0.22831593]
[1768829767265,120.17162937,3218.0,3216.0,0.00324197]
[1768829767266,120.17162937,3218.0,3217.1,0.22831593]
[1768829767770,120.17162937,3218.0,3217.0,0.15552]
[1768829768671,1.28868425,3217.9,3217.0,0.15552]
[1768829774884,1.28925802,3217.7,3217.0,0.15552]
[1768829775374,1.28925802,3217.8,3217.0,0.15552]
[1768829779574,1.28925802,3217.8,3217.1,0.22831593]
[1768829781571,122.94362937,3218.0,3217.1,0.22831593]
[1768829783780,1.28925802,3217.8,3217.1,0.22831593]
[1768829783983,1.28925802,3217.8,3217.0,0.15552]
[1768829784179,1.28925802,3217.5,3216.7,0.20013027]
[1768829784584,1.28925802,3217.6,3216.7,0.20013027]
[1768829786281,120.17162937,3218.0,3216.9,0.20013027]
[1768829786481,121.46088739,3218.0,3216.9,0.20013027]
[1768829788288,120.17162937,3218.0,3216.9,0.20013027]
[1768829788486,1.28925802,3217.8,3216.9,0.20013027]
[1768829790686,1.28925802,3217.8,3216.9,0.35566027]
[1768829791888,1.28925802,3217.9,3216.9,0.35566027]
[1768829793585,124.29588739,3218.0,3217.0,0.20013027]
[1768829793785,0.9316004,3217.9,3217.0,0.20013027]
[1768829793986,124.29588739,3218.0,3217.0,0.20013027]
[1768829794186,0.93159819,3217.9,3217.0,0.20013027]
[1768829794385,124.29788739,3218.0,3217.0,0.20013027]
[1768829794584,0.93166512,3217.9,3217.0,0.20013027]
[1768829794889,124.29788739,3218.0,3217.0,0.20013027]
[1768829795085,0.93166595,3217.9,3217.0,0.20013027]
[1768829795285,124.30088739,3218.0,3217.0,0.20013027]
[1768829795485,0.93175534,3217.9,3217.0,0.20013027]
[1768829795685,124.30088739,3218.0,3217.0,0.20013027]
[1768829795892,0.93175529,3217.9,3217.0,0.20013027]
[1768829796083,121.46088739,3218.0,3217.0,0.20013027]
[1768829796285,0.93188922,3217.9,3217.0,0.20013027]
[1768829796483,124.30388739,3218.0,3217.0,0.20013027]
[1768829796680,0.93188862,3217.9,3217.0,0.20013027]
[1768829796884,124.30588739,3218.0,3217.0,0.20013027]
[1768829797186,0.93188915,3217.9,3217.0,0.20013027]
[1768829797392,124.30588739,3218.0,3217.0,0.20013027]
[1768829797589,0.93204795,3217.9,3217.0,0.20013027]
[1768829797792,124.30588739,3218.0,3217.0,0.20013027]
[1768829798092,0.93204687,3217.9,3217.0,0.20013027]
[1768829798395,124.30588739,3218.0,3217.0,0.20013027]
[1768829798690,0.9320522,3217.9,3217.0,0.20013027]
[1768829798892,124.30588739,3218.0,3217.0,0.20013027]
[1768829799098,0.93205495,3217.9,3217.1,0.20013027]
[1768829799285,124.30588739,3218.0,3217.1,0.20013027]
[1768829799484,0.9320643,3217.9,3217.1,0.20013027]
[1768829799687,124.30588739,3218.0,3217.1,0.20013027]
[1768829799886,0.9320643,3217.9,3217.1,0.20013027]
[1768829800086,121.46088739,3218.0,3217.1,0.20013027]
[1768829800386,0.9320755,3217.9,3217.1,0.20013027]
[1768829800585,124.31688739,3218.0,3217.1,0.20013027]
[1768829800787,0.93207549,3217.9,3217.1,0.20013027]
[1768829800989,124.31688739,3218.0,3217.1,0.20013027]
[1768829801182,0.93207549,3217.9,3217.1,0.20013027]
[1768829801395,124.31688739,3218.0,3217.1,0.20013027]
[1768829801694,0.93208552,3217.9,3217.1,0.20013027]
[1768829801882,124.31688739,3218.0,3217.1,0.20013027]
[1768829802081,0.93208936,3217.9,3217.1,0.20013027]
[1768829802286,124.31688739,3218.0,3217.1,0.20013027]
[1768829802485,0.93210791,3217.9,3217.1,0.20013027]
[1768829802697,124.31688739,3218.0,3217.1,0.20013027]
[1768829802897,0.93210785,3217.9,3217.1,0.20013027]
[1768829803089,124.31688739,3218.0,3217.1,0.20013027]
[1768829803290,0.93213207,3217.9,3217.1,0.20013027]
[1768829803491,121.46088739,3218.0,3217.1,0.20013027]
[1768829803801,0.93213129,3217.9,3217.1,0.20013027]
[1768829804096,124.32888739,3218.0,3217.1,0.20013027]
[1768829804298,0.93216274,3217.9,3217.1,0.20013027]
[1768829804499,124.32888739,3218.0,3217.1,0.20013027]
[1768829804692,0.93216359,3217.9,3217.1,0.20013027]
[1768829804883,124.32888739,3218.0,3217.1,0.20013027]
[1768829805084,0.93240292,3217.9,3217.1,0.20013027]
[1768829805294,124.32888739,3218.0,3217.1,0.20013027]
[1768829805495,0.93244295,3217.9,3217.1,0.20013027]
[1768829805696,120.17162937,3218.0,3217.1,0.20013027]
[1768829806290,120.17162937,3218.0,3217.3,0.19343638]
[1768829808592,120.17162937,3218.0,3217.3,0.34893638]
[1768829808798,120.17162937,3218.0,3217.3,0.19343638]
[1768829809600,120.17162937,3218.0,3217.5,0.19343638]
[1768829812503,120.17162937,3218.0,3217.4,0.1555]
[1768829813505,1.28925802,3217.9,3217.1,0.19343638]
[1768829814508,1.28925802,3217.9,3216.9,0.15552]
[1768829818506,1.28925802,3217.9,3216.9,0.33645967]
[1768829818709,120.17162937,3218.0,3216.9,0.33645967]
[1768829818908,123.08662937,3218.0,3217.0,0.18093967]
[1768829819709,120.17162937,3218.0,3217.0,0.18093967]
[1768829819916,123.08962937,3218.0,3217.0,0.18093967]
[1768829820603,120.17162937,3218.0,3217.0,0.18093967]
[1768829820798,120.17162937,3218.0,3217.0,0.33645967]
[1768829821404,120.17162937,3218.0,3217.1,0.18093967]
[1768829842319,120.17162937,3218.0,3217.0,0.15552]
[1768829842320,0.9330704,3217.9,3217.0,0.15552]
[1768829842625,2.99,3217.8,3217.0,0.15552]
[1768829848833,2.99,3217.8,3217.0,0.31853759]
[1768829854732,120.17162937,3218.0,3217.1,0.31852759]
[1768829854938,123.19962937,3218.0,3217.3,0.16301759]
[1768829855332,120.17162937,3218.0,3217.3,0.16301759]
[1768829855835,120.17162937,3218.0,3217.6,0.16301759]
[1768829866838,120.16585352,3218.0,3217.7,0.15865722]
[1768829867828,119.85493703,3218.0,3217.7,0.15865722]
[1768829868246,119.53397703,3218.0,3217.8,0.31413722]
[1768829868438,108.82156288,3218.0,3217.9,0.15865722]
[1768829869438,108.82156288,3218.0,3217.8,0.15548]
[1768829869439,98.10914873,3218.0,3217.8,0.15548]
[1768829870143,97.63794148,3218.0,3217.8,0.15548]
[1768829870347,96.94271148,3218.0,3217.8,0.15548]
[1768829870536,85.88009733,3218.0,3217.8,0.15548]
[1768829870735,85.48316733,3218.0,3217.9,0.15548]
[1768829870940,85.11929733,3218.0,3217.9,0.15548]
[1768829871342,84.75268733,3218.0,3217.9,0.15548]
[1768829871645,73.65570318,3218.0,3217.9,0.15548]
[1768829871848,73.28159318,3218.0,3217.9,0.15548]
[1768829872846,72.90989318,3218.0,3217.9,0.15548]
[1768829873336,72.53585318,3218.0,3217.9,0.15548]
[1768829873536,72.17205318,3218.0,3217.9,0.15548]
[1768829874447,71.39807318,3218.0,3217.9,0.15548]
[1768829874746,70.61854318,3218.0,3217.9,0.15548]
[1768829874934,70.24611318,3218.0,3217.9,0.15548]
[1768829875542,69.57433318,3218.0,3217.9,2.46348]
[1768829876349,69.57433318,3218.0,3217.9,1.29467651]
[1768829876645,69.25966318,3218.0,3217.9,1.29467651]
[1768829877248,67.76488958,3218.0,3217.9,1.29467651]
[1768829877747,67.45234958,3218.0,3217.9,1.45015651]
[1768829878351,67.14063958,3218.0,3217.9,1.45015651]
[1768829878547,66.82864958,3218.0,3217.9,1.45015651]
[1768829879146,66.50415958,3218.0,3217.9,1.45015651]
[1768829879448,66.10800958,3218.0,3217.9,1.45015651]
[1768829879648,65.72418958,3218.0,3217.9,1.45015651]
[1768829879852,65.34607958,3218.0,3217.9,1.45015651]
[1768829880052,64.95816958,3218.0,3217.9,1.45015651]
[1768829880441,64.59884958,3218.0,3217.9,1.45015651]
[1768829880641,64.24009958,3218.0,3217.9,1.45015651]
[1768829880841,63.87600958,3218.0,3217.9,1.45015651]
[1768829881351,63.56425958,3218.0,3217.9,1.45015651]
[1768829881552,63.20158958,3218.0,3217.9,1.45015651]
[1768829881746,62.82645958,3218.0,3217.9,1.45015651]
[1768829881944,62.44411958,3218.0,3217.9,1.45015651]
[1768829882448,60.67468652,3218.0,3217.9,1.45015651]
[1768829882641,48.18137372,3218.0,3217.9,1.45015651]
[1768829882841,47.02500372,3218.0,3217.9,1.45015651]
[1768829883038,46.44268372,3218.0,3217.9,1.45015651]
[1768829883255,45.28271372,3218.0,3217.9,1.45015651]
[1768829883555,34.03907957,3218.0,3217.9,1.45015651]
[1768829884052,33.49746957,3218.0,3217.9,1.45015651]
[1768829884244,32.8430325,3218.0,3217.9,1.45015651]
[1768829884554,21.52272835,3218.0,3217.9,1.45015651]
[1768829885148,20.90293835,3218.0,3217.9,1.45015651]
[1768829885348,14.34858094,3218.0,3217.9,1.45015651]
[1768829885652,13.70263094,3218.0,3217.9,1.45015651]
[1768829885851,12.44211094,3218.0,3217.9,1.45015651]
[1768829886950,11.80753094,3218.0,3217.9,1.45015651]
[1768829887154,6.79e-06,3218.0,3217.9,1.45015651]
[1768829887355,7.71e-06,3218.3,3218.2,0.15546]
[1768829887956,0.26914131,3218.3,3218.2,0.15546]
[1768829888159,1.28896678,3219.1,3218.2,0.15546]
[1768829888354,1.29159092,3219.1,3217.9,1.29467651]